bitfinex-derivatives/quotes_BNBF0:USTF0_20250302
["timestamp","ask_amount","ask_price","bid_price","bid_amount"]
[1740887427151,1.021,608.22,607.34,0.32930483]
[1740887427456,1.71790347,608.13,607.34,0.32930483]
[1740887427646,1.021,608.22,607.34,0.32930483]
[1740887428051,1.71790347,608.13,607.34,0.32930483]
[1740887428252,1.021,608.22,607.34,0.32930483]
[1740887428453,1.71790347,608.13,607.34,0.32930483]
[1740887428653,1.021,608.22,607.34,0.32930483]
[1740887430059,1.71788227,608.21,607.34,0.32930483]
[1740887431059,2.96195001,608.21,607.34,0.32930483]
[1740887431254,1.71788227,608.21,607.34,0.32930483]
[1740887431750,2.96195001,608.21,607.34,0.32930483]
[1740887436361,3.23751113,608.2,607.34,0.32930483]
[1740887436755,3.23751113,608.19,607.34,0.32930483]
[1740887437261,3.23751113,608.18,607.34,0.32930483]
[1740887437860,3.23751113,608.17,607.34,0.32930483]
[1740887438060,4.9557256,608.17,607.34,0.32930483]
[1740887438654,3.23751113,608.16,607.34,0.32930483]
[1740887439361,3.23751113,608.15,607.34,0.32930483]
[1740887439760,3.23751113,608.14,607.34,0.32930483]
[1740887440360,3.23751113,608.13,607.34,0.32930483]
[1740887441065,4.95570439,608.12,607.34,0.32930483]
[1740887441864,3.23751113,608.11,607.34,0.32930483]
[1740887442064,3.23751113,608.1,607.34,0.32930483]
[1740887442865,1.24406774,608.09,607.34,0.32930483]
[1740887443168,1.24406774,608.09,607.37,1.21792817]
[1740887443767,3.23751113,608.08,607.37,1.21792817]
[1740887444167,1.24406774,608.07,607.37,1.21792817]
[1740887445169,3.23751113,608.06,607.34,0.32930483]
[1740887445967,3.23751113,608.05,607.34,0.32930483]
[1740887446372,3.23751113,608.04,607.34,0.32930483]
[1740887447172,3.23751113,608.03,607.34,0.32930483]
[1740887447967,3.23751113,608.02,607.34,0.32930483]
[1740887448671,3.23751113,608.01,607.34,0.32930483]
[1740887449774,3.23751113,608.0,607.34,0.32930483]
[1740887449975,4.95607915,608.0,607.34,0.32930483]
[1740887450371,3.23751113,607.99,607.34,0.32930483]
[1740887450773,3.23751113,607.98,607.34,0.32930483]
[1740887451777,3.23751113,607.97,607.34,0.32930483]
[1740887452374,3.23751113,607.96,607.34,0.32930483]
[1740887453077,1.71864583,607.95,607.34,0.32930483]
[1740887453773,3.23751113,607.94,607.34,0.32930483]
[1740887454476,3.23751113,607.93,607.34,0.32930483]
[1740887455378,3.23751113,607.92,607.34,0.32930483]
[1740887456178,3.23751113,607.91,607.34,0.32930483]
[1740887457379,3.23751113,607.9,607.34,0.32930483]
[1740887457874,1.24406774,607.89,607.34,0.32930483]
[1740887458478,1.24406774,607.88,607.34,0.32930483]
[1740887458878,1.71863875,607.87,607.34,0.32930483]
[1740887459080,2.96270649,607.87,607.34,0.32930483]
[1740887459976,1.24406774,607.86,607.34,0.32930483]
[1740887460376,1.203,607.85,607.34,0.32930483]
[1740887460981,1.24406774,607.84,607.34,0.32930483]
[1740887461379,1.203,607.85,607.34,0.32930483]
[1740887462888,1.24735482,607.84,607.34,0.32930483]
[1740887463588,1.203,607.85,607.34,0.32930483]
[1740887465784,1.24760744,607.84,607.34,0.32930483]
[1740887466289,1.203,607.85,607.34,0.32930483]
[1740887472994,1.24825717,607.84,607.34,0.32930483]
[1740887474091,1.24825717,607.83,607.34,0.32930483]
[1740887475096,1.24825717,607.82,607.34,0.32930483]
[1740887475797,1.24825717,607.81,607.34,0.32930483]
[1740887476392,1.24825717,607.8,607.34,0.32930483]
[1740887477598,1.24825717,607.79,607.34,0.32930483]
[1740887478903,1.203,607.85,607.34,0.32930483]
[1740887479802,1.2483547,607.84,607.34,0.32930483]
[1740887480098,1.2483547,607.83,607.34,0.32930483]
[1740887480501,1.2483547,607.83,606.96,1.21792817]
[1740887480701,1.2483547,607.82,606.96,1.21792817]
[1740887481400,1.2483547,607.81,606.96,1.21792817]
[1740887482100,1.203,607.85,606.96,1.21792817]
[1740887483499,1.71865997,607.94,606.96,1.21792817]
[1740887484306,3.24646551,607.93,606.96,1.21792817]
[1740887484802,1.413,607.92,606.96,1.21792817]
[1740887485204,1.24874857,607.91,606.96,1.21792817]
[1740887485404,1.24874857,607.91,606.98,1.21792817]
[1740887485599,1.24874857,607.9,606.98,1.21792817]
[1740887485999,2.96743684,607.9,606.98,1.21792817]
[1740887486402,3.24777577,607.89,606.98,1.21792817]
[1740887487701,4.8936824,607.88,606.98,1.21792817]
[1740887487905,1.64590663,607.87,606.98,1.21792817]
[1740887488307,3.90603107,607.86,606.96,1.21792817]
[1740887489208,7.00003038,607.85,606.96,1.21792817]
[1740887489409,1.64607177,607.84,606.96,1.21792817]
[1740887489806,5.55210284,607.84,606.96,1.21792817]
[1740887490006,1.64607177,607.83,606.96,1.21792817]
[1740887490908,3.90603107,607.82,606.96,1.21792817]
[1740887491109,1.64607177,607.81,606.96,1.21792817]
[1740887491310,1.64607177,607.81,606.16,2.50432289]
[1740887491311,5.5522167,607.81,606.91,1.21792817]
[1740887491611,3.09405984,607.8,606.91,1.21792817]
[1740887492003,7.00009091,607.8,606.91,1.21792817]
[1740887492208,3.09409748,607.79,606.91,1.21792817]
[1740887492504,1.64618563,607.79,606.91,1.21792817]
[1740887492909,3.90603107,607.78,606.91,1.21792817]
[1740887493208,1.64618563,607.77,606.91,1.21792817]
[1740887493604,3.90603107,607.76,606.91,1.21792817]
[1740887494010,3.90603107,607.76,606.82,1.21792817]
[1740887494812,3.90603107,607.75,606.82,1.21792817]
[1740887495111,5.62520754,607.75,606.82,1.21792817]
[1740887495612,3.24777577,607.74,606.82,1.21792817]
[1740887495814,3.24777577,607.74,606.68,1.21792817]
[1740887498014,3.24777577,607.74,606.64,1.21792817]
[1740887498216,1.71928972,607.73,606.64,1.21792817]
[1740887498815,3.24777577,607.72,606.64,1.21792817]
[1740887499615,1.24874857,607.71,606.64,1.21792817]
[1740887500517,1.24874857,607.7,606.87,1.21792817]
[1740887500813,2.74574857,607.7,606.87,1.21792817]
[1740887501718,1.497,607.7,606.87,1.21792817]
[1740887503412,1.497,607.7,606.79,1.21792817]
[1740887503617,1.24888292,607.69,606.79,1.21792817]
[1740887504319,1.497,607.7,606.79,1.21792817]
[1740887504621,1.497,607.7,606.81,0.32959245]
[1740887505719,1.24900429,607.69,606.81,0.32959245]
[1740887506615,1.24900429,607.68,606.81,0.32959245]
[1740887507322,1.497,607.7,606.81,0.32959245]
[1740887510816,1.24899088,607.69,606.81,0.32959245]
[1740887511422,1.24899088,607.68,606.81,0.32959245]
[1740887512017,1.24899088,607.67,606.81,0.32959245]
[1740887512623,1.24899088,607.66,606.81,0.32959245]
[1740887513724,3.24742918,607.65,606.81,0.32959245]
[1740887514319,1.24899088,607.64,606.81,0.32959245]
[1740887515223,1.24899088,607.63,606.81,0.32959245]
[1740887515923,1.24899088,607.62,606.81,0.32959245]
[1740887516324,1.24899088,607.61,606.81,0.32959245]
[1740887516927,1.99791269,607.68,606.81,0.32959245]
[1740887516928,1.24899088,607.6,606.81,0.32959245]
[1740887517828,1.24899088,607.59,606.81,0.32959245]
[1740887518727,1.24899088,607.58,606.81,0.32959245]
[1740887519530,1.497,607.7,606.81,0.32959245]
[1740887520033,1.24841176,607.69,606.81,0.32959245]
[1740887520430,2.96774395,607.69,606.81,0.32959245]
[1740887520626,1.24841176,607.68,606.81,0.32959245]
[1740887521533,1.71933219,607.69,606.81,0.32959245]
[1740887521534,1.24841176,607.67,606.81,0.32959245]
[1740887522432,1.497,607.7,606.81,0.32959245]
[1740887522735,1.24840592,607.69,606.81,0.32959245]
[1740887523334,1.24840592,607.68,606.81,0.32959245]
[1740887523734,1.24840592,607.67,606.81,0.32959245]
[1740887524635,1.497,607.7,606.81,0.32959245]
[1740887525239,1.497,607.7,606.9,1.21792817]
[1740887525439,1.497,607.7,606.91,0.32953815]
[1740887527539,1.497,607.7,607.0,1.21792817]
[1740887527736,1.497,607.7,607.01,0.32948386]
[1740887528833,1.24895602,607.69,607.01,0.32948386]
[1740887529942,1.497,607.7,607.01,1.54741203]
[1740887531641,1.497,607.7,607.02,1.21792817]
[1740887531839,1.497,607.7,607.03,0.329473]
[1740887532744,1.24960619,607.69,607.03,0.329473]
[1740887533444,1.497,607.7,607.03,0.329473]
[1740887533838,1.497,607.7,607.05,1.21792817]
[1740887534143,1.497,607.7,607.06,0.32945672]
[1740887534939,1.24982864,607.69,607.06,0.32945672]
[1740887535742,1.24982864,607.68,607.06,0.32945672]
[1740887536648,1.24982864,607.68,607.08,1.21792817]
[1740887536846,1.24982864,607.68,607.09,0.32944044]
[1740887537042,1.24982864,607.67,607.09,0.32944044]
[1740887537944,1.24982864,607.66,607.09,0.32944044]
[1740887538953,1.24982864,607.65,607.09,0.32944044]
[1740887540245,1.71914817,607.77,607.09,0.32944044]
[1740887541152,4.66202983,607.76,607.09,0.32944044]
[1740887541853,3.25102983,607.75,607.09,0.32944044]
[1740887542754,3.25102983,607.74,607.09,0.32944044]
[1740887543358,3.25102983,607.73,607.09,0.32944044]
[1740887544356,3.25102983,607.72,607.09,0.32944044]
[1740887545155,3.25102983,607.71,607.09,0.32944044]
[1740887545857,3.25102983,607.7,607.09,0.32944044]
[1740887546252,3.25102983,607.69,607.09,0.32944044]
[1740887546857,1.411,607.76,607.09,0.32944044]
[1740887546858,3.25102983,607.68,607.09,0.32944044]
[1740887547355,3.25102983,607.67,607.09,0.32944044]
[1740887547953,1.2504801,607.66,607.09,0.32944044]
[1740887548156,3.25102983,607.66,607.09,0.32944044]
[1740887548353,3.25102983,607.65,607.09,0.32944044]
[1740887549057,3.25102983,607.64,607.09,0.32944044]
[1740887550254,3.25102983,607.63,607.09,0.32944044]
[1740887551257,1.2504801,607.62,607.09,0.32944044]
[1740887551754,1.2504801,607.61,607.09,0.32944044]
[1740887552459,1.2504801,607.6,607.09,0.32944044]
[1740887552953,1.2504801,607.59,607.09,0.32944044]
[1740887553553,1.411,607.76,607.09,0.32944044]
[1740887554356,3.91368311,607.75,607.09,0.32944044]
[1740887555159,3.91368311,607.74,607.09,0.32944044]
[1740887555659,3.25527048,607.73,607.09,0.32944044]
[1740887556662,3.25527048,607.72,607.09,0.32944044]
[1740887557662,1.25202711,607.71,607.1,1.21792817]
[1740887557962,1.25202711,607.71,607.11,0.32942959]
[1740887558362,1.25202711,607.7,607.11,0.32942959]
[1740887560964,1.25202711,607.7,607.17,1.21792817]
[1740887561164,1.25202711,607.7,607.17,1.5473252]
[1740887562060,1.25202711,607.69,607.17,1.5473252]
[1740887562863,1.252,607.7,607.17,1.5473252]
[1740887562864,1.25202711,607.68,607.17,1.5473252]
[1740887563064,1.25202711,607.68,607.17,0.32939703]
[1740887563465,1.25202711,607.67,607.17,0.32939703]
[1740887564062,1.25202711,607.66,607.17,0.32939703]
[1740887564665,1.25202711,607.65,607.17,0.32939703]
[1740887565163,1.25202711,607.64,607.17,0.32939703]
[1740887565559,1.25202711,607.63,607.17,0.32939703]
[1740887566362,1.252,607.7,607.17,0.32939703]
[1740887566363,1.25202711,607.62,607.17,0.32939703]
[1740887567063,3.25569781,607.61,607.17,0.32939703]
[1740887568068,3.25569781,607.6,607.17,0.32939703]
[1740887568569,3.25569781,607.59,607.17,0.32939703]
[1740887569665,3.25569781,607.58,607.17,0.32939703]
[1740887570066,3.25569781,607.57,607.17,0.32939703]
[1740887570869,3.25569781,607.56,607.17,0.32939703]
[1740887571568,1.25202711,607.55,607.17,0.32939703]
[1740887571770,1.25202711,607.54,607.17,0.32939703]
[1740887572671,1.25202711,607.53,607.17,0.32939703]
[1740887573276,2.97121894,607.7,607.17,0.32939703]
[1740887574173,3.25500431,607.69,607.17,0.32939703]
[1740887575081,3.25500431,607.68,607.17,0.32939703]
[1740887575878,3.25500431,607.67,607.17,0.32939703]
[1740887576679,3.25500431,607.66,607.17,0.32939703]
[1740887577479,1.25192473,607.65,607.17,0.32939703]
[1740887578478,1.25192473,607.64,607.17,0.32939703]
[1740887579275,1.25192473,607.63,607.17,0.32939703]
[1740887579981,1.25192473,607.62,607.17,0.32939703]
[1740887580778,1.25192473,607.61,607.17,0.32939703]
[1740887581582,1.25192473,607.6,607.17,0.32939703]
[1740887582483,1.25192473,607.59,607.17,0.32939703]
[1740887583077,1.25192473,607.58,607.17,0.32939703]
[1740887583879,1.25192473,607.57,607.17,0.32939703]
[1740887584384,1.252,607.7,607.17,0.32939703]
[1740887584986,4.97585136,607.69,607.17,0.32939703]
[1740887585285,5.56136711,607.68,607.17,0.32939703]
[1740887585585,1.64632207,607.67,607.17,0.32939703]
[1740887585784,1.64632207,607.66,607.17,0.32939703]
[1740887585984,1.64632207,607.65,607.17,0.32939703]
[1740887586286,3.91512804,607.65,607.17,0.32939703]
[1740887587188,3.91512804,607.64,607.17,0.32939703]
[1740887587985,3.91512804,607.63,607.17,0.32939703]
[1740887589084,3.91512804,607.62,607.17,0.32939703]
[1740887589685,3.91512804,607.61,607.17,0.32939703]
[1740887590489,3.25663242,607.6,607.17,0.32939703]
[1740887590989,3.25663242,607.59,607.17,0.32939703]
[1740887591784,3.25663242,607.58,607.17,0.32939703]
[1740887592389,1.71933219,607.68,607.17,0.32939703]
[1740887592390,3.25663242,607.57,607.17,0.32939703]
[1740887592788,1.25255093,607.57,607.17,0.32939703]
[1740887592987,1.25255093,607.56,607.17,0.32939703]
[1740887593791,1.25255093,607.55,607.17,0.32939703]
[1740887594793,1.25255093,607.54,607.17,0.32939703]
[1740887595294,1.25255093,607.53,607.17,0.32939703]
[1740887595994,1.25255093,607.52,607.17,0.32939703]
[1740887596990,1.25255093,607.51,607.17,0.32939703]
[1740887597901,1.25255093,607.5,607.17,0.32939703]
[1740887598602,1.25255093,607.49,607.17,0.32939703]
[1740887599101,1.25255093,607.48,607.17,0.32939703]
[1740887599702,1.25255093,607.47,607.17,0.32939703]
[1740887600598,1.71967913,607.62,607.17,0.32939703]
[1740887601405,3.25474205,607.61,607.17,0.32939703]
[1740887602103,3.25474205,607.6,607.17,0.32939703]
[1740887603206,3.25474205,607.59,607.17,0.32939703]
[1740887603705,1.605,607.58,607.17,0.32939703]
[1740887604104,3.25474205,607.57,607.17,0.32939703]
[1740887604907,3.25474205,607.56,607.17,0.32939703]
[1740887606005,3.25474205,607.55,607.17,0.32939703]
[1740887606810,1.25182386,607.54,607.17,0.32939703]
[1740887607204,1.25182386,607.53,607.17,0.32939703]
[1740887608209,1.25182386,607.52,607.17,0.32939703]
[1740887609005,1.25182386,607.51,607.17,0.32939703]
[1740887610207,1.25182386,607.5,607.17,0.32939703]
[1740887611007,1.25182386,607.49,607.17,0.32939703]
[1740887611714,1.25182386,607.48,607.17,0.32939703]
[1740887612313,1.25182386,607.47,607.17,0.32939703]
[1740887612710,1.25182386,607.46,607.17,0.32939703]
[1740887613515,1.605,607.58,607.17,0.32939703]
[1740887613909,3.25428238,607.57,607.17,0.32939703]
[1740887615113,3.25428238,607.56,607.17,0.32939703]
[1740887615809,1.25164707,607.55,607.17,0.32939703]
[1740887616416,1.25164707,607.54,607.17,0.32939703]
[1740887617116,1.25164707,607.53,607.17,0.32939703]
[1740887618014,1.605,607.58,607.17,0.32939703]
[1740887637736,1.25003353,607.57,607.17,0.32939703]
[1740887638335,1.25003353,607.56,607.17,0.32939703]
[1740887638835,1.25003353,607.55,607.17,0.32939703]
[1740887639429,1.25003353,607.54,607.17,0.32939703]
[1740887639833,1.25003353,607.53,607.17,0.32939703]
[1740887640934,1.605,607.58,607.17,0.32939703]
[1740887641338,1.25003772,607.57,607.17,0.32939703]
[1740887641737,1.25003772,607.56,607.17,0.32939703]
[1740887642734,1.25003772,607.55,607.17,0.32939703]
[1740887643138,1.25003772,607.54,607.17,0.32939703]
[1740887643843,1.605,607.58,607.17,0.32939703]
[1740887644442,1.2500648,607.57,607.17,0.32939703]
[1740887645138,1.2500648,607.56,607.17,0.32939703]
[1740887645842,1.2500648,607.55,607.17,0.32939703]
[1740887646036,2.5130648,607.55,607.17,0.32939703]
[1740887646236,1.263,607.55,607.17,0.32939703]
[1740887687167,1.263,607.55,607.18,1.21792817]
[1740887687369,1.263,607.55,607.19,0.32938618]
[1740887690071,1.263,607.55,607.22,1.21792817]
[1740887690267,1.263,607.55,607.23,0.32936449]
[1740887692374,1.263,607.55,607.33,1.21792817]
[1740887692674,1.263,607.55,607.34,0.32930483]
[1740887694876,1.24703315,608.0,607.34,0.32930483]
[1740887695175,1.24703315,607.99,607.34,0.32930483]
[1740887696077,1.109,607.98,607.34,0.32930483]
[1740887718406,1.109,607.98,607.38,1.21792817]
[1740887718605,1.109,607.98,607.39,0.32927772]
[1740887720406,1.109,607.98,607.39,1.54720589]
[1740887723208,1.109,607.98,607.42,1.21792817]
[1740887723408,1.109,607.98,607.43,0.32925604]
[1740887726212,1.109,607.98,607.43,1.54718421]
[1740887727610,1.109,607.98,607.43,0.32925604]
[1740887729510,1.109,607.98,607.43,1.54718421]
[1740887731911,1.109,607.98,607.43,0.32925604]
[1740887733315,1.99844103,608.07,607.43,0.32925604]
[1740887733813,3.24754369,608.06,607.43,0.32925604]
[1740887734403,1.526,608.05,607.43,0.32925604]
[1740887734610,2.77510266,608.05,607.43,0.32925604]
[1740887735012,1.24910266,608.04,607.43,0.32925604]
[1740887736014,1.24910266,608.03,607.43,0.32925604]
[1740887737014,1.24910266,608.02,607.43,0.32925604]
[1740887737714,1.526,608.05,607.43,0.32925604]
[1740887738912,1.24937257,608.04,607.43,0.32925604]
[1740887739309,1.24937257,608.03,607.43,0.32925604]
[1740887740110,1.526,608.05,607.43,0.32925604]
[1740887742017,1.24977144,608.04,607.43,0.32925604]
[1740887743816,1.24977144,608.04,607.51,1.21792817]
[1740887744020,1.24977144,608.04,607.52,0.32920726]
[1740887744622,1.526,608.05,607.52,0.32920726]
[1740887746221,1.2504643,608.04,607.52,0.32920726]
[1740887747119,1.526,608.05,607.52,0.32920726]
[1740887747120,1.2504643,608.03,607.52,0.32920726]
[1740887747826,1.2504643,608.02,607.52,0.32920726]
[1740887748527,1.526,608.05,607.52,0.32920726]
[1740887749028,1.2509697,608.04,607.52,0.32920726]
[1740887749632,1.2509697,608.03,607.52,0.32920726]
[1740887750432,1.526,608.05,607.52,0.32920726]
[1740887751625,1.25114846,608.04,607.52,0.32920726]
[1740887752231,1.25114846,608.03,607.52,0.32920726]
[1740887752732,1.526,608.05,607.52,0.32920726]
[1740887757139,1.24882235,608.04,607.52,0.32920726]
[1740887757940,1.526,608.05,607.52,0.32920726]
[1740887759034,1.24904975,608.04,607.52,0.32920726]
[1740887759440,1.24904975,608.03,607.52,0.32920726]
[1740887760036,1.24904975,608.02,607.52,0.32920726]
[1740887760541,1.24904975,608.01,607.52,0.32920726]
[1740887761042,1.24904975,608.0,607.52,0.32920726]
[1740887761839,1.24904975,607.99,607.52,0.32920726]
[1740887762241,1.526,608.05,607.52,0.32920726]
[1740887762842,1.24938846,608.04,607.52,0.32920726]
[1740887763342,1.24938846,608.03,607.52,0.32920726]
[1740887763543,1.24938846,608.03,607.53,1.21792817]
[1740887763742,1.24938846,608.03,607.54,0.32919643]
[1740887764141,1.24938846,608.02,607.54,0.32919643]
[1740887764944,1.24938846,608.01,607.54,0.32919643]
[1740887765737,1.24938846,608.0,607.54,0.32919643]
[1740887766343,1.24938846,607.99,607.54,0.32919643]
[1740887766742,1.24938846,607.98,607.54,0.32919643]
[1740887767338,1.526,608.05,607.54,0.32919643]
[1740887768045,3.24953174,608.04,607.54,0.32919643]
[1740887768638,3.24953174,608.03,607.54,0.32919643]
[1740887769345,3.24953174,608.02,607.54,0.32919643]
[1740887769546,3.24953174,608.01,607.54,0.32919643]
[1740887770443,3.24953174,608.0,607.54,0.32919643]
[1740887771349,1.2498199,607.99,607.54,0.32919643]
[1740887771845,1.2498199,607.98,607.54,0.32919643]
[1740887772747,1.2498199,607.97,607.54,0.32919643]
[1740887773352,1.2498199,607.96,607.54,0.32919643]
[1740887774045,1.2498199,607.95,607.54,0.32919643]
[1740887774651,2.8978199,607.95,607.54,0.32919643]
[1740887774946,1.648,607.95,607.54,0.32919643]
[1740887775348,1.25130034,607.94,607.54,0.32919643]
[1740887776151,1.25130034,607.93,607.54,0.32919643]
[1740887776853,1.25130034,607.92,607.54,0.32919643]
[1740887777449,1.648,607.95,607.54,0.32919643]
[1740887777850,1.25145721,607.94,607.54,0.32919643]
[1740887778554,1.25145721,607.93,607.54,0.32919643]
[1740887779256,1.648,607.95,607.54,0.32919643]
[1740887779856,1.25138788,607.94,607.54,0.32919643]
[1740887780355,1.25138788,607.93,607.54,0.32919643]
[1740887781255,1.648,607.95,607.54,0.32919643]
[1740887791756,1.648,607.95,607.57,1.21792817]
[1740887791956,1.648,607.95,607.58,0.32917475]
[1740887816370,1.648,607.95,607.62,1.21792817]
[1740887816571,1.648,607.95,607.62,1.54708125]
[1740887818373,1.648,607.95,607.65,1.21792817]
[1740887820076,1.648,607.95,607.66,0.32913142]
[1740887820777,1.648,607.95,607.66,1.54705959]
[1740887822675,1.648,607.95,607.66,0.32913142]
[1740887829685,1.648,607.95,607.7,1.21792817]
[1740887829983,1.64456183,608.34,607.7,1.21792817]
[1740887830184,1.64456183,608.33,607.71,0.32910434]
[1740887830381,1.64456183,608.32,607.71,0.32910434]
[1740887830682,3.91092955,608.32,607.71,0.32910434]
[1740887831075,4.97992955,608.32,607.71,0.32910434]
[1740887831482,3.91092955,608.31,607.71,0.32910434]
[1740887832679,3.91092955,608.3,607.71,0.32910434]
[1740887833281,3.91092955,608.29,607.71,0.32910434]
[1740887833685,1.069,608.32,607.71,0.32910434]
[1740887834088,3.91061675,608.28,607.71,0.32910434]
[1740887835284,3.25281491,608.27,607.71,0.32910434]
[1740887836083,3.25281491,608.26,607.71,0.32910434]
[1740887836885,3.25281491,608.25,607.71,0.32910434]
[1740887837786,3.25281491,608.24,607.71,0.32910434]
[1740887838780,3.25281491,608.23,607.71,0.32910434]
[1740887839388,3.25281491,608.22,607.71,0.32910434]
[1740887840387,1.25108266,608.21,607.71,0.32910434]
[1740887841183,1.25108266,608.2,607.71,0.32910434]
[1740887842193,1.25108266,608.19,607.71,0.32910434]
[1740887843089,1.25108266,608.18,607.71,0.32910434]
[1740887844091,0.65779651,608.3,607.71,0.32910434]
[1740887844092,1.25108266,608.17,607.71,0.32910434]
[1740887844588,0.65779651,608.28,607.71,0.32910434]
[1740887845291,1.069,608.32,607.71,0.32910434]
[1740887845292,3.25237182,608.27,607.71,0.32910434]
[1740887845892,3.91017079,608.26,607.71,0.32910434]
[1740887846692,3.91017079,608.25,607.71,0.32910434]
[1740887847092,3.91017079,608.24,607.71,0.32910434]
[1740887847587,3.91017079,608.23,607.71,0.32910434]
[1740887848293,3.91017079,608.22,607.71,0.32910434]
[1740887849394,3.25237182,608.21,607.71,0.32910434]
[1740887849989,3.25237182,608.2,607.71,0.32910434]
[1740887850498,3.25237182,608.19,607.71,0.32910434]
[1740887851097,3.25237182,608.18,607.71,0.32910434]
[1740887851605,3.25237182,608.17,607.71,0.32910434]
[1740887852300,3.25237182,608.16,607.71,0.32910434]
[1740887852702,1.71753606,608.27,607.71,0.32910434]
[1740887853001,3.25228364,608.15,607.71,0.32910434]
[1740887853899,3.25228364,608.14,607.71,0.32910434]
[1740887854904,1.25087832,608.13,607.71,0.32910434]
[1740887856001,1.25087832,608.12,607.71,0.32910434]
[1740887857004,1.25087832,608.11,607.71,0.32910434]
[1740887857602,0.65788504,608.25,607.71,0.32910434]
[1740887858205,3.91017197,608.24,607.71,0.32910434]
[1740887859106,3.91017197,608.23,607.71,0.32910434]
[1740887859607,3.91017197,608.22,607.71,0.32910434]
[1740887860405,3.91017197,608.21,607.71,0.32910434]
[1740887861109,3.91017197,608.2,607.71,0.32910434]
[1740887862110,3.91017197,608.19,607.71,0.32910434]
[1740887863011,5.55521017,608.18,607.71,0.32910434]
[1740887863210,1.6450382,608.17,607.71,0.32910434]
[1740887863410,1.6450382,608.16,607.71,0.32910434]
[1740887863606,1.6450382,608.15,607.71,0.32910434]
[1740887863805,1.6450382,608.17,607.71,0.32910434]
[1740887864007,3.91017197,608.15,607.71,0.32910434]
[1740887864211,3.3628922,608.14,607.71,0.32910434]
[1740887864407,5.55521017,608.13,607.71,0.32910434]
[1740887864610,1.6450382,608.12,607.71,0.32910434]
[1740887864810,1.64512559,608.11,607.71,0.32910434]
[1740887865109,3.91017197,608.13,607.71,0.32910434]
[1740887865611,5.72512098,608.12,607.71,0.32910434]
[1740887865808,1.64529284,608.11,607.71,0.32910434]
[1740887866013,1.64529284,608.1,607.71,0.32910434]
[1740887866314,1.64532215,608.09,607.71,0.32910434]
[1740887866509,3.91017197,608.13,607.71,0.32910434]
[1740887866510,1.64532215,608.08,607.71,0.32910434]
[1740887866712,1.64532215,608.07,607.71,0.32910434]
[1740887867010,1.64532215,608.1,607.71,0.32910434]
[1740887867211,1.71815085,608.06,607.71,0.32910434]
[1740887867412,5.62832282,608.06,607.71,0.32910434]
[1740887868113,3.91017197,608.05,607.71,0.32910434]
[1740887869214,3.91017197,608.04,607.71,0.32910434]
[1740887869712,3.91017197,608.03,607.71,0.32910434]
[1740887870212,4.97055089,608.02,607.71,0.32910434]
[1740887871015,3.25228693,608.01,607.71,0.32910434]
[1740887871416,1.377,608.0,607.71,0.32910434]
[1740887871616,4.62928693,608.0,607.71,0.32910434]
[1740887872013,3.25228693,607.99,607.71,0.32910434]
[1740887872925,1.25087959,607.98,607.71,0.32910434]
[1740887873522,1.25087959,607.97,607.71,0.32910434]
[1740887874123,1.25087959,607.97,607.1,1.21792817]
[1740887874421,1.25087959,607.96,607.12,0.32942416]
[1740887875120,1.25087959,607.95,607.12,0.32942416]
[1740887875925,3.24612955,607.94,607.12,0.32942416]
[1740887877219,3.24612955,607.93,607.12,0.32942416]
[1740887878021,3.24612955,607.92,607.12,0.32942416]
[1740887878831,3.24612955,607.91,607.12,0.32942416]
[1740887879427,1.25087959,607.9,607.12,0.32942416]
[1740887880027,1.25087959,607.89,607.12,0.32942416]
[1740887880631,1.25087959,607.88,607.12,0.32942416]
[1740887881430,1.7188439,607.94,607.12,0.32942416]
[1740887881930,1.99524996,607.99,607.12,0.32942416]
[1740887882130,1.71885097,607.94,607.12,0.32942416]
[1740887883229,1.24461547,607.93,607.12,0.32942416]
[1740887884226,1.24461547,607.92,607.12,0.32942416]
[1740887884830,1.24461547,607.91,607.12,0.32942416]
[1740887885230,2.96367164,607.91,607.12,0.32942416]
[1740887885431,4.88607879,607.9,607.12,0.32942416]
[1740887885627,3.23986543,607.9,607.12,0.32942416]
[1740887886630,3.23986543,607.89,607.12,0.32942416]
[1740887886832,1.64621943,607.88,607.12,0.32942416]
[1740887887028,4.88608486,607.88,607.12,0.32942416]
[1740887887329,3.23986543,607.88,607.12,0.32942416]
[1740887887827,1.71905617,607.91,607.12,0.32942416]
[1740887887828,3.23986543,607.87,607.12,0.32942416]
[1740887888431,1.71918355,607.86,607.12,0.32942416]
[1740887888626,4.95904898,607.86,607.12,0.32942416]
[1740887889433,3.23986543,607.85,607.12,0.32942416]
[1740887890232,3.23986543,607.84,607.12,0.32942416]
[1740887891234,4.95902775,607.83,607.12,0.32942416]
[1740887891734,6.07102775,607.83,607.12,0.32942416]
[1740887892331,3.23986543,607.82,607.12,0.32942416]
[1740887892932,3.23986543,607.81,607.12,0.32942416]
[1740887893437,3.23986543,607.8,607.12,0.32942416]
[1740887893836,1.24461547,607.79,607.12,0.32942416]
[1740887894437,1.71927557,607.78,607.12,0.32942416]